bitfinex-derivatives/quotes_ETHF0:USTF0_20250421
["timestamp","ask_amount","ask_price","bid_price","bid_amount"]
[1745216603807,17.7225997,1653.7,1653.6,40.80905087]
[1745216605412,17.72260005,1653.7,1653.6,40.80905087]
[1745216607109,17.72260466,1653.7,1653.6,40.80905087]
[1745216607615,9.51480466,1653.7,1653.6,40.80905087]
[1745216608812,7.5125,1653.7,1653.6,40.80905087]
[1745216609813,7.5095,1653.7,1653.6,40.80905087]
[1745216610312,7.5095,1653.7,1653.6,42.72085087]
[1745216613607,7.5095,1653.7,1653.6,40.80905087]
[1745216613812,10.7173,1653.7,1653.6,40.80905087]
[1745216614121,15.82380029,1653.7,1653.6,40.80905087]
[1745216614620,1.20979,1653.3,1653.2,7.8253]
[1745216614815,5.68679,1653.3,1653.2,1.9413]
[1745216615513,7.45619,1653.3,1653.2,1.9413]
[1745216615718,7.45619,1653.3,1653.2,42.7413]
[1745216624334,7.45619,1653.3,1653.2,40.8]
[1745216627531,7.56271492,1653.3,1653.2,40.8]
[1745216627731,7.45619,1653.3,1653.2,40.8]
[1745216629533,7.56271313,1653.3,1653.2,40.8]
[1745216631031,12.56271313,1653.3,1653.2,40.8]
[1745216631232,1.21009,1652.9,1652.8,3.6031]
[1745216631427,5.68809,1652.9,1652.8,3.6031]
[1745216632237,5.68809,1652.9,1652.8,44.4031]
[1745216632728,7.36959,1652.9,1652.8,44.4031]
[1745216633631,10.57739,1652.9,1652.8,42.6453]
[1745216635140,10.57739,1652.9,1652.8,40.8]
[1745216635340,10.68394151,1652.9,1652.8,40.8]
[1745216636336,10.57739,1652.9,1652.8,41.5148]
[1745216639144,102.85939,1652.9,1652.8,41.5148]
[1745216640639,99.65159,1652.9,1652.8,41.5148]
[1745216641246,102.85939,1652.9,1652.8,41.5148]
[1745216641945,99.65159,1652.9,1652.8,41.5148]
[1745216642146,102.85939,1652.9,1652.8,41.5148]
[1745216642750,99.65159,1652.9,1652.8,41.5148]
[1745216642941,102.85939,1652.9,1652.8,41.5148]
[1745216643348,102.96595278,1652.9,1652.8,41.5148]
[1745216645549,102.85939,1652.9,1652.8,41.5148]
[1745216645843,102.85939,1652.9,1652.8,0.7148]
[1745216646050,102.96595742,1652.9,1652.8,0.7148]
[1745216646236,102.85939,1652.9,1652.8,0.7148]
[1745216646547,1.21038,1652.5,1652.4,3.2078]
[1745216646747,5.68538,1652.5,1652.4,3.2078]
[1745216647042,5.68538,1652.5,1652.4,44.0078]
[1745216647242,1.21119,1651.4,1651.3,7.97647583]
[1745216647438,8.89399,1651.4,1651.3,14.66817583]
[1745216647638,4.475,1651.4,1651.3,55.46817583]
[1745216648441,5.68619,1651.4,1651.3,55.46817583]
[1745216648645,5.68619,1651.4,1651.3,50.46817583]
[1745216649252,8.89399,1651.4,1651.3,50.46817583]
[1745216651647,8.89399,1651.4,1651.3,42.4917]
[1745216653446,7.6828,1651.4,1651.3,42.4917]
[1745216653946,4.475,1651.4,1651.3,42.4917]
[1745216654655,7.6828,1651.4,1651.3,42.4917]
[1745216655152,8.89399,1651.4,1651.3,42.4917]
[1745216657352,0.0090788,1651.5,1651.3,42.4917]
[1745216657353,0.0090788,1651.5,1651.3,47.4917]
[1745216657542,1.2201888,1651.5,1651.4,1.7557]
[1745216658256,1.2201888,1651.5,1651.4,42.5557]
[1745216658556,5.6981888,1651.5,1651.4,42.5557]
[1745216658954,0.0090788,1651.5,1651.4,42.5557]
[1745216659158,0.0090788,1651.5,1651.4,53.0275]
[1745216659359,0.0090788,1651.5,1651.4,54.23869]
[1745216661155,0.0090788,1651.5,1651.4,51.97469]
[1745216662359,1.21093,1651.8,1651.6,1.21103]
[1745216662558,1.21089,1651.8,1651.7,3.7449]
[1745216662956,1.21089,1651.8,1651.7,8.7449]
[1745216663156,5.68886,1651.9,1651.7,8.7449]
[1745216663357,5.68886,1651.9,1651.8,1.7422]
[1745216664355,8.89666,1651.9,1651.8,1.7422]
[1745216665254,1.21089,1651.8,1651.7,1.6282]
[1745216665556,2.87529,1651.8,1651.7,1.6282]
[1745216667660,1.21097,1651.7,1651.6,1.7512788]
[1745216667858,4.8086,1651.7,1651.6,1.7512788]
[1745216668163,4.8086,1651.7,1651.6,0.0090788]
[1745216668360,1.6008,1651.7,1651.6,0.0090788]
[1745216668860,4.8086,1651.7,1651.6,0.0090788]
[1745216672061,1.6008,1651.7,1651.6,0.0090788]
[1745216672262,1.6008,1651.7,1651.6,1.7172788]
[1745216673657,5.68884,1651.9,1651.6,1.7172788]
[1745216673858,1.21097,1651.7,1651.6,0.0090788]
[1745216676467,1.21097,1651.7,1651.6,1.7179788]
[1745216677661,2.83567,1651.7,1651.6,1.7179788]
[1745216678264,2.83567,1651.7,1651.6,0.0090788]
[1745216678466,6.04347,1651.7,1651.6,0.0090788]
[1745216678653,2.83567,1651.7,1651.6,0.0090788]
[1745216678857,4.51497,1651.7,1651.6,0.0090788]
[1745216679864,7.6858,1651.9,1651.6,0.0090788]
[1745216679865,5.6938388,1652.0,1651.7,1.21093]
[1745216680261,7.3731388,1652.0,1651.8,1.7627]
[1745216681066,7.3731388,1652.0,1651.9,1.7167]
[1745216681268,7.3731388,1652.0,1651.9,42.5167]
[1745216683570,6.1623788,1652.0,1651.9,42.5167]
[1745216683771,7.3731288,1652.0,1651.9,42.5167]
[1745216684168,7.3731288,1652.0,1651.9,40.8]
[1745216685872,6.1623788,1652.0,1651.9,40.8]
[1745216688277,6.1623788,1652.0,1651.9,42.01082]
[1745216688469,4.4830788,1652.0,1651.9,40.8]
[1745216689170,6.2253788,1652.0,1651.9,40.8]
[1745216689468,6.2253788,1652.0,1651.9,42.5109]
[1745216690575,6.2253788,1652.0,1651.9,43.72172]
[1745216691075,4.4830788,1652.0,1651.9,43.72172]
[1745216696378,4.4830788,1652.0,1651.9,40.8]
[1745216696379,5.6938288,1652.0,1651.9,40.8]
[1745216696579,7.3100288,1652.0,1651.9,40.8]
[1745216696776,8.9066288,1652.0,1651.9,40.8]
[1745216697972,7.6958788,1652.0,1651.9,40.8]
[1745216705088,8.9066288,1652.0,1651.9,40.8]
[1745216705691,9.01324206,1652.0,1651.9,40.8]
[1745216708688,1.21097,1651.7,1651.6,0.0090788]
[1745216708891,5.67997,1651.7,1651.6,0.0090788]
[1745216709391,9.12457,1651.7,1651.6,0.0090788]
[1745216709580,9.12457,1651.7,1651.6,40.8090788]
[1745216712794,10.74407,1651.7,1651.6,40.8090788]
[1745216716291,10.85070396,1651.7,1651.6,40.8090788]
[1745216716598,1.21131,1651.3,1651.0,5.884]
[1745216716796,4.469,1651.2,1651.1,3.3776]
[1745216717299,4.469,1651.2,1651.1,8.3776]
[1745216717491,4.469,1651.2,1651.1,44.1776]
[1745216719693,5.68033,1651.2,1651.1,44.1776]
[1745216719894,7.41603,1651.2,1651.1,44.1776]
[1745216721094,4.469,1651.2,1651.1,44.1776]
[1745216721496,5.68033,1651.2,1651.1,44.1776]
[1745216722898,4.469,1651.2,1651.1,44.1776]
[1745216724895,5.68033,1651.2,1651.1,44.1776]
[1745216725900,4.469,1651.2,1651.1,44.1776]
[1745216726901,4.469,1651.2,1651.1,42.4392]
[1745216727100,7.30813,1651.2,1651.1,44.0768]
[1745216729203,6.0968,1651.2,1651.1,44.0768]
[1745216729702,6.0968,1651.2,1651.1,45.28821]
[1745216730003,4.469,1651.2,1651.1,45.28821]
[1745216730196,4.469,1651.2,1651.1,44.0768]
[1745216730801,4.469,1651.2,1651.1,45.28821]
[1745216732296,4.469,1651.2,1651.1,45.71501]
[1745216733297,4.469,1651.2,1651.1,51.59901]
[1745216734303,4.465,1651.4,1651.3,1.21126]
[1745216735101,4.465,1651.4,1651.3,3.47526]
[1745216736302,5.67619,1651.4,1651.3,2.264]
[1745216736498,1.21133,1651.2,1651.1,40.8]
[1745216736805,1.21169,1650.8,1650.6,3.2689]
[1745216737009,4.465,1650.7,1650.6,3.2689]
[1745216737307,6.2208,1650.7,1650.6,3.2689]
[1745216737699,6.2208,1650.7,1650.6,44.0689]
[1745216739403,1.6864788,1650.9,1650.6,49.0689]
[1745216739602,1.6864788,1650.9,1650.7,1.6347]
[1745216739800,1.6864788,1650.9,1650.7,2.84633]
[1745216740303,1.6864788,1650.9,1650.8,1.6347]
[1745216740508,1.6864788,1650.9,1650.8,2.84633]
[1745216740710,0.0090788,1650.9,1650.8,2.84633]
[1745216741208,0.0090788,1650.9,1650.8,5.11033]
[1745216742005,0.0090788,1650.9,1650.8,3.8987]
[1745216742706,4.4284288,1650.9,1650.8,2.264]
[1745216743103,1.21169,1650.8,1650.6,42.3506]
[1745216743301,4.465,1650.7,1650.6,42.3506]
[1745216743704,7.2736,1650.7,1650.6,42.3506]
[1745216743906,7.2736,1650.7,1650.0,7.4955]
[1745216743907,3.2078,1650.2,1649.0,23.9294275]
[1745216744108,10.05,1648.6,1647.6,3.2078]
[1745216744407,3.2078,1648.2,1647.4,52.2954168]
[1745216744608,0.0090788,1648.3,1648.2,24.2387]
[1745216744808,1.21307,1648.9,1648.2,68.2465]
[1745216745111,3.2078,1649.5,1649.0,24.2387]
[1745216745308,0.46007031,1649.4,1649.3,24.2387]
[1745216745505,0.98016606,1649.4,1649.3,24.2387]
[1745216745713,0.98016606,1649.4,1649.3,30.45143]
[1745216746011,3.68705642,1649.8,1649.3,30.45143]
[1745216746012,3.2078,1650.2,1649.3,46.26372644]
[1745216746206,3.2078,1650.6,1650.3,24.2387]
[1745216746406,0.12116071,1650.7,1650.6,24.2387]
[1745216746607,3.2078,1651.1,1650.6,30.2717]
[1745216746803,3.2078,1650.8,1650.5,0.0090788]
[1745216747008,0.0090788,1650.8,1650.5,0.0090788]
[1745216747212,3.2078,1650.7,1649.8,3.2078]
[1745216747409,0.0090788,1650.8,1650.7,17.18213872]
[1745216747611,3.2078,1650.9,1650.7,17.18213872]
[1745216747914,3.2078,1651.2,1650.8,23.21513872]
[1745216748122,3.2078,1651.2,1650.8,46.833]
[1745216748413,3.2078,1651.2,1651.1,9.45449175]
[1745216748607,12.03271588,1651.3,1651.1,9.45449175]
[1745216748810,12.04179468,1651.3,1651.2,15.48649175]
[1745216749006,12.04179468,1651.3,1651.2,53.54489175]
[1745216749218,12.04179468,1651.3,1651.2,51.99929175]
[1745216749512,12.04179468,1651.3,1651.2,40.8]
[1745216749719,12.04179468,1651.3,1651.2,50.25449175]
[1745216749918,0.0090788,1651.3,1651.2,50.25449175]
[1745216750112,0.0090788,1651.3,1651.2,54.26329175]
[1745216750311,0.0090788,1651.3,1651.2,50.8408]
[1745216750518,0.0090788,1651.3,1651.2,60.29529175]
[1745216750721,15.45529395,1651.5,1651.2,25.70658175]
[1745216750916,15.45529395,1651.5,1651.4,9.45449175]
[1745216751115,12.03271588,1651.7,1651.6,1.21104]
[1745216751116,7.50551808,1651.7,1651.6,1.21104]
[1745216751420,7.50551808,1651.7,1651.6,10.44984]
[1745216751421,4.85811808,1651.7,1651.6,10.44984]
[1745216751614,8.89628661,1652.0,1651.6,55.0388]
[1745216751817,1.10716541,1652.0,1651.9,4.41862]
[1745216752115,11.99547382,1652.5,1651.9,10.4718]
[1745216752316,7.15787382,1652.5,1652.4,1.21045]
[1745216752511,3.50113382,1652.5,1652.4,48.04145]
[1745216752714,13.86473106,1652.6,1652.5,1.21038]
[1745216752915,18.05697346,1652.7,1652.5,9.4898]
[1745216753218,54.09352882,1652.8,1652.7,1.21023]
[1745216753219,52.61225882,1652.8,1652.7,1.21023]
[1745216753406,52.61225882,1652.8,1652.7,103.10803]
[1745216753610,3.2078,1653.6,1653.2,1.20983]
[1745216753813,3.2078,1653.6,1653.3,7.49173]
[1745216754016,42.76795231,1653.9,1653.4,3.2078]
[1745216754215,42.76795231,1653.9,1653.5,92.36]
[1745216754420,0.0090788,1653.8,1653.7,1.2095]
[1745216754619,52.74725883,1654.0,1653.9,1.20935]
[1745216754816,21.41854617,1654.2,1654.1,1.20921]
[1745216755016,21.41854617,1654.2,1654.1,6.278]
[1745216755321,18.44915617,1654.2,1654.1,12.48721]
[1745216755522,3.2078,1654.4,1654.1,6.278]
[1745216755717,17.22429153,1654.8,1654.2,3.2078]
[1745216755918,0.0090788,1654.3,1654.2,4.41694]
[1745216756119,0.0090788,1654.3,1654.2,96.77694]
[1745216756521,0.0090788,1654.3,1654.2,99.84714]
[1745216756724,0.0090788,1654.3,1654.2,104.84714]
[1745216756917,0.0090788,1654.3,1654.2,93.56914]
[1745216757223,3.2168788,1654.3,1654.2,40.8]
[1745216757417,37.34807643,1654.3,1654.2,40.8]
[1745216757612,23.3315849,1654.3,1654.2,40.8]
[1745216757823,43.55713643,1654.3,1654.2,40.8]
[1745216758029,38.99607643,1654.3,1654.2,40.8]
[1745216758325,3.9210788,1654.3,1654.2,47.074]
[1745216758519,2.2730788,1654.3,1654.2,47.074]
[1745216759022,2.2730788,1654.3,1654.2,48.28314]
[1745216759221,0.0090788,1654.3,1654.2,40.8]
[1745216759413,37.34807643,1654.3,1654.1,0.0090788]
[1745216759620,15.22563153,1654.2,1654.1,0.0090788]
[1745216759819,16.87363153,1654.2,1654.1,0.0090788]
[1745216760019,36.98833763,1654.2,1654.1,0.0090788]
[1745216760215,1.20943,1653.8,1653.7,6.272]
[1745216760417,1.20959,1653.6,1653.4,6.272]
[1745216760613,1.20965,1653.5,1653.3,6.272]
[1745216760816,16.95864153,1653.5,1653.3,6.272]
[1745216761027,30.80134763,1653.5,1653.4,40.8]
[1745216761238,16.7848561,1653.5,1653.4,40.8]
[1745216761422,30.80134763,1653.5,1653.4,40.8]
[1745216761630,1.20972,1653.4,1653.3,0.0090788]
[1745216761823,20.16651153,1653.4,1653.3,0.0090788]
[1745216762124,25.16651153,1653.4,1653.3,0.0090788]
[1745216762328,29.24512153,1653.4,1652.5,1.21034]
[1745216762622,3.2078,1652.7,1652.6,40.8]
[1745216762929,1.21019,1652.8,1652.6,40.8]
[1745216763426,15.73609153,1652.7,1652.6,40.8]
[1745216763624,18.94389153,1652.7,1652.6,40.8]
[1745216765228,21.20789153,1652.7,1652.6,40.8]
[1745216766432,22.41812153,1652.7,1652.6,40.8]
[1745216768023,5.4718,1652.7,1652.6,42.01031]
[1745216768224,3.2078,1652.7,1652.6,42.01031]
[1745216768821,3.2334,1653.3,1653.0,1.20997]
[1745216768822,6.02663,1653.3,1653.0,1.20997]
[1745216769026,20.04312153,1653.3,1653.0,1.20997]
[1745216769230,14.01649153,1653.2,1652.9,6.273]
[1745216769533,3.2078,1653.1,1652.9,1.21008]
[1745216769733,18.81739153,1653.1,1652.9,1.21008]
[1745216769935,14.01649153,1653.0,1652.8,7.48311]
[1745216770232,14.01649153,1653.0,1652.8,1.21011]
[1745216770422,15.22653153,1653.0,1652.8,7.48314]
[1745216770622,15.60959153,1653.0,1652.8,6.273]
[1745216770823,17.22429153,1652.9,1652.6,44.0078]
[1745216771026,2.80331,1652.8,1652.6,44.0078]
[1745216771419,1.21023,1652.7,1652.6,44.0078]
[1745216771618,16.81982153,1652.7,1652.6,40.8]
[1745216771834,20.02762153,1652.7,1652.6,40.8]
[1745216772931,1.21031,1652.6,1652.5,0.0090788]
[1745216773131,16.93290153,1652.6,1652.5,0.0090788]
[1745216773328,1.2105,1652.4,1652.1,4.41843]
[1745216773534,4.4183,1652.4,1652.1,4.41843]
[1745216773735,14.01649153,1652.3,1652.1,4.41843]
[1745216774028,14.01649153,1652.3,1652.0,6.273]
[1745216774029,15.22702153,1652.3,1652.2,40.8]
[1745216774235,4.41833,1652.3,1652.2,40.8]
[1745216774535,18.43482153,1652.3,1652.2,40.8]
[1745216774936,23.43482153,1652.3,1652.2,40.8]
[1745216775236,25.69882153,1652.3,1652.2,40.8]
[1745216775436,1.2106,1652.2,1652.1,0.0090788]
[1745216775635,1.21083,1651.9,1651.5,1.21108]
[1745216775929,3.2078,1651.9,1651.6,1.21102]
[1745216776133,14.01649153,1651.8,1651.6,1.21102]
[1745216776336,14.01649153,1651.8,1651.7,40.8]
[1745216776535,3.2078,1651.9,1651.7,40.8]
[1745216776732,14.01649153,1651.8,1651.7,40.8]
[1745216777836,14.01649153,1651.8,1651.7,42.01097]
[1745216778839,14.01649153,1651.8,1651.7,40.8]
[1745216779040,15.65169153,1651.8,1651.7,40.8]
[1745216779240,1.6352,1651.8,1651.7,47.01097]
[1745216779434,1.6352,1651.8,1651.7,50.21877]
[1745216779840,1.6352,1651.8,1651.7,47.01097]
[1745216780232,1.6352,1651.8,1651.7,42.01097]
[1745216780434,15.65169153,1651.8,1651.7,40.8]
[1745216780742,15.65169153,1651.8,1651.7,42.01097]
[1745216781036,15.65169153,1651.8,1651.7,45.21877]
[1745216781242,16.86258153,1651.8,1651.7,40.8]
[1745216782238,15.65169153,1651.8,1651.7,40.8]
[1745216784647,15.65169153,1651.8,1651.7,42.01097]
[1745216786246,1.6352,1651.8,1651.7,42.01097]
[1745216787341,0.0090788,1651.9,1651.8,1.21089]
[1745216787742,14.02557033,1651.9,1651.8,1.21089]
[1745216788040,14.49325591,1651.9,1651.8,1.21089]
[1745216788543,14.49325591,1651.9,1651.8,0.75667247]
[1745216789139,14.4945046,1651.9,1651.8,0.75667247]
[1745216789340,16.2375046,1651.9,1651.8,0.75667247]
[1745216789538,1.21089,1651.8,1651.7,40.8]
[1745216789738,16.2284258,1651.8,1651.7,42.01097]
[1745216791046,2.213751,1651.8,1651.7,42.01097]
[1745216791946,16.23024253,1651.8,1651.7,42.01097]
[1745216792350,0.470751,1651.8,1651.7,42.01097]
[1745216792541,0.470751,1651.8,1651.7,47.03367]
[1745216792736,0.0090788,1651.9,1651.8,1.21089]
[1745216792950,0.48040842,1651.9,1651.8,1.21089]
[1745216794743,0.0090788,1651.9,1651.8,1.21089]
[1745216795741,0.4811806,1651.9,1651.8,1.21089]
[1745216796355,0.4811806,1651.9,1651.8,42.01089]
[1745216797253,14.49767213,1651.9,1651.8,41.55668754]
[1745216800351,14.49908099,1651.9,1651.8,41.55668754]
[1745216803352,16.24428099,1651.9,1651.8,40.8]
[1745216803554,16.24428099,1651.9,1651.8,42.01089]
[1745216804355,3.2078,1652.1,1651.8,42.01089]
[1745216804356,4.41815,1652.6,1652.0,3.02681]
[1745216804560,1.7452,1652.2,1652.1,1.21067]
[1745216804960,15.76169153,1652.2,1652.1,42.01067]
[1745216808554,15.76169153,1652.2,1652.1,40.8]
[1745216808760,15.76169153,1652.2,1652.1,42.01067]
[1745216809162,18.02569153,1652.2,1652.1,42.01067]
[1745216811262,15.76169153,1652.2,1652.1,42.01067]
[1745216812764,19.72689718,1652.2,1652.1,42.01067]
[1745216813260,21.43869718,1652.2,1652.1,42.01067]
[1745216814161,23.70269718,1652.2,1652.1,42.01067]
[1745216814361,26.91049718,1652.2,1652.1,42.01067]
[1745216814854,31.91049718,1652.2,1652.1,42.01067]
[1745216815057,26.91049718,1652.2,1652.1,42.01067]
[1745216816161,24.19339406,1652.2,1652.1,42.01067]
[1745216818864,27.40119406,1652.2,1652.1,40.8]
[1745216819163,29.66519406,1652.2,1652.1,42.01067]
[1745216819657,39.6826995,1652.2,1652.1,40.8]
[1745216819857,39.6826995,1652.2,1652.1,42.01067]
[1745216820064,39.6826995,1652.2,1652.1,40.8]
[1745216820765,39.6826995,1652.2,1652.1,42.01067]
[1745216821658,20.74660797,1652.2,1652.1,42.01067]
[1745216822154,18.48260797,1652.2,1652.1,42.01067]
[1745216823865,6.08436743,1652.2,1652.1,53.35558265]
[1745216824067,4.78502743,1652.2,1652.1,53.40608265]
[1745216824368,3.46404743,1652.2,1652.1,53.40608265]
[1745216824570,8.09094876,1652.3,1652.2,1.2106]
[1745216824866,8.09094876,1652.3,1652.2,4.4395]
[1745216825056,8.09094876,1652.3,1652.2,9.4395]
[1745216825254,8.09094876,1652.3,1652.2,50.2395]
[1745216825467,8.09094876,1652.3,1652.2,45.2395]
[1745216825667,9.69584876,1652.3,1652.2,45.2395]
[1745216827667,9.69584876,1652.3,1652.2,51.1235]
[1745216828260,5.65112302,1652.3,1652.2,51.1235]
[1745216828965,5.65112302,1652.3,1652.2,51.1024]
[1745216829353,5.65112302,1652.3,1652.2,56.6224]
[1745216829555,2.05931302,1652.3,1652.2,61.6224]
[1745216829758,3.02e-06,1652.3,1652.2,61.6224]
[1745216830154,3.02e-06,1652.3,1652.2,63.8864]
[1745216832170,0.0090788,1652.4,1652.3,1.21053]
[1745216832364,0.0090788,1652.4,1652.3,1.23203]
[1745216832762,0.0090788,1652.4,1652.3,42.03203]
[1745216833665,8.8e-06,1652.4,1652.3,42.03203]
[1745216836071,8.8e-06,1652.4,1652.3,42.01053]
[1745216836283,14.01650033,1652.4,1652.3,42.01053]
[1745216837675,15.67850033,1652.4,1652.3,42.01053]
[1745216838181,15.67850033,1652.4,1652.3,45.21833]
[1745216838777,23.88630033,1652.4,1652.0,5.884]
[1745216839072,15.73609153,1652.3,1651.8,14.18411]
[1745216839278,1.662,1652.2,1652.1,1.21063]
[1745216839477,18.88629153,1652.2,1652.1,1.21063]
[1745216839677,20.67849153,1652.2,1652.1,1.21063]
[1745216839877,20.67849153,1652.2,1652.1,42.01063]
[1745216840270,22.94249153,1652.2,1652.1,42.01063]
[1745216841071,17.94249153,1652.2,1652.1,42.01063]
[1745216842269,15.67849153,1652.2,1652.1,42.01063]
[1745216843080,1.662,1652.2,1652.1,47.28463]
[1745216844080,1.662,1652.2,1652.1,50.49243]
[1745216844280,8.4897646,1652.2,1652.1,47.28463]
[1745216844884,22.50625613,1652.2,1652.1,47.28463]
[1745216846081,22.50625613,1652.2,1652.1,42.01063]
[1745216846975,8.4897646,1652.2,1652.1,45.21843]
[1745216847183,6.8277646,1652.2,1652.1,45.21843]
[1745216847783,7.76931633,1652.3,1652.2,1.2106]
[1745216847983,21.78580786,1652.3,1652.2,1.2106]
[1745216850487,7.76931633,1652.3,1652.2,7.0946]
[1745216850688,8.8e-06,1652.4,1652.3,1.21053]
[1745216850891,8.8e-06,1652.4,1652.3,6.48453]
[1745216851291,8.8e-06,1652.4,1652.3,47.28453]
[1745216851681,6.0539444,1652.4,1652.3,48.98833]
[1745216852691,6.0539444,1652.4,1652.3,52.19613]
[1745216854094,6.0539444,1652.4,1652.3,58.08013]
[1745216856082,8.8e-06,1652.4,1652.3,58.08013]
[1745216858096,14.01650033,1652.4,1652.3,56.37633]
[1745216860495,8.8e-06,1652.4,1652.3,56.37633]
[1745216866308,14.01650033,1652.4,1652.3,56.37633]
[1745216866494,14.01650033,1652.4,1652.3,46.684]
[1745216866694,14.01650033,1652.4,1652.3,47.89453]
[1745216867599,22.22430033,1652.4,1652.3,42.01053]
[1745216867799,23.95360033,1652.4,1652.3,42.01053]
[1745216868603,25.16405033,1652.4,1652.3,40.8]
[1745216868804,23.95360033,1652.4,1652.3,42.01053]
[1745216870107,26.21760033,1652.4,1652.3,42.01053]
[1745216870304,42.58931211,1652.4,1652.3,42.01053]
[1745216871700,34.38151211,1652.4,1652.3,42.01053]
[1745216872302,32.11751211,1652.4,1652.3,42.01053]
[1745216873903,35.32531211,1652.4,1652.3,42.01053]
[1745216874107,27.7967007,1652.4,1652.3,42.01053]
[1745216874402,24.5889007,1652.4,1652.3,42.01053]
[1745216875198,26.8529007,1652.4,1652.3,42.01053]
[1745216876301,24.5889007,1652.4,1652.3,42.01053]
[1745216878198,16.51780197,1652.4,1652.3,42.01053]
[1745216878407,16.51780197,1652.4,1652.3,45.21833]
[1745216878599,2.50131044,1652.4,1652.3,50.25633]
[1745216881607,8.8e-06,1652.4,1652.3,50.25633]
[1745216882809,14.01650033,1652.4,1652.3,45.21833]
[1745216883003,14.01650033,1652.4,1652.3,42.01053]
[1745216884108,14.01650033,1652.4,1652.3,40.8]
[1745216884312,14.01650033,1652.4,1652.3,42.01053]
[1745216884313,22.22430033,1652.4,1652.3,42.01053]
[1745216884611,22.22430033,1652.4,1652.0,1.21069]
[1745216884811,3.2078,1652.2,1652.1,1.21064]
[1745216885413,1.2107,1652.1,1651.9,1.21075]
[1745216885603,1.6603,1652.0,1651.9,1.21075]
[1745216885804,15.67679153,1652.0,1651.9,1.21075]
[1745216886314,15.67679153,1652.0,1651.9,42.01075]
[1745216890604,16.44884773,1652.0,1651.9,42.01075]
[1745216897914,16.44884773,1652.0,1651.9,45.69735]
[1745216900525,16.44884773,1652.0,1651.9,42.01075]
[1745216900729,16.44884773,1652.0,1651.9,40.8]
[1745216900924,22.65959773,1652.0,1651.9,40.8]
[1745216901124,24.92359773,1652.0,1651.9,40.8]
[1745216901628,23.71284773,1652.0,1651.9,42.01082]
[1745216902222,21.44884773,1652.0,1651.9,42.01082]
[1745216902430,20.67679153,1652.0,1651.9,42.01082]
[1745216903129,21.88754153,1652.0,1651.9,40.8]
[1745216903430,15.67679153,1652.0,1651.9,42.01082]
[1745216903728,16.88754153,1652.0,1651.9,40.8]
[1745216908719,20.09534153,1652.0,1651.9,40.8]
[1745216910428,25.09534153,1652.0,1651.9,40.8]
[1745216910621,31.07934153,1652.0,1651.9,40.8]
[1745216910825,31.85151096,1652.0,1651.9,40.8]
[1745216912834,1.21097,1651.7,1651.6,0.0090788]
[1745216913036,18.43526153,1651.7,1651.6,0.0090788]
[1745216913534,22.28376153,1651.7,1651.6,0.0090788]
[1745216913933,22.28376153,1651.7,1651.6,40.8090788]
[1745216919536,31.11511163,1651.7,1651.6,40.8090788]
[1745216924540,37.09911163,1651.7,1651.6,40.8090788]
[1745216928244,36.55613363,1651.7,1651.6,40.8090788]
[1745216932057,46.63010946,1651.7,1651.6,40.8090788]
[1745216934259,41.57063946,1651.7,1651.6,40.8090788]
[1745216934463,32.37883946,1651.7,1651.6,47.0201188]
[1745216935359,32.37883946,1651.7,1651.6,45.8090788]
[1745216935668,32.37883946,1651.7,1651.6,47.0201188]
[1745216937061,32.37883946,1651.7,1651.6,42.0201188]
[1745216937368,32.37883946,1651.7,1651.6,40.8090788]
[1745216937369,36.79760946,1651.7,1651.6,40.8090788]
[1745216937768,32.37883946,1651.7,1651.6,40.8090788]
[1745216938669,32.37883946,1651.7,1651.6,42.0201188]
[1745216939171,32.37883946,1651.7,1651.6,47.0201188]
[1745216939868,20.83859199,1651.7,1651.6,47.0201188]
[1745216941070,20.83859199,1651.7,1651.6,42.0201188]
[1745216943866,14.01649153,1651.7,1651.6,42.0201188]
[1745216944763,14.01649153,1651.7,1651.6,40.8090788]
[1745216944959,14.01649153,1651.7,1651.6,42.0201188]
[1745216947971,8.06657471,1651.8,1651.7,1.21097]
[1745216948171,8.06657471,1651.8,1651.7,8.40807]
[1745216949476,8.06657471,1651.8,1651.7,13.40807]
[1745216951574,8.83872525,1652.0,1651.9,1.21082]
[1745216951775,22.85521678,1652.0,1651.9,1.21082]
[1745216952172,22.85521678,1652.0,1651.9,4.96722]
[1745216952673,26.50391678,1652.0,1651.9,4.96722]
[1745216952876,29.71171678,1652.0,1651.7,3.7241]
[1745216953068,14.01649153,1651.9,1651.8,1.21089]
[1745216953767,17.66519153,1651.9,1651.8,1.21089]
[1745216956269,20.84523101,1651.9,1651.8,1.21089]
[1745216957569,24.54953101,1651.9,1651.8,1.21089]
[1745216958978,25.76036101,1651.9,1651.7,4.54]
[1745216959180,17.52129153,1651.8,1651.7,5.75097]
[1745216959378,21.17769153,1651.8,1651.7,5.75097]
[1745216959982,21.17769153,1651.8,1651.7,1.21097]
[1745216961568,22.38858153,1651.8,1651.7,1.21097]
[1745216961774,21.17769153,1651.8,1651.6,42.0201188]
[1745216961974,14.01649153,1651.7,1651.6,42.0201188]
[1745216962170,17.43119153,1651.7,1651.6,42.0201188]
[1745216962580,18.64216153,1651.7,1651.6,40.8090788]
[1745216962775,26.84996153,1651.7,1651.6,40.8090788]
[1745216964782,33.67870101,1651.7,1651.6,40.8090788]
[1745216966875,38.21870101,1651.7,1651.6,40.8090788]
[1745216968482,33.21870101,1651.7,1651.6,40.8090788]
[1745216968682,34.69417497,1651.7,1651.6,40.8090788]
[1745216974288,44.78662641,1651.7,1651.6,40.8090788]
[1745216977990,34.69417497,1651.7,1651.6,40.8090788]
[1745216983791,30.15417497,1651.7,1651.6,40.8090788]
[1745216987193,26.73947497,1651.7,1651.6,40.8090788]
[1745216988296,30.49097497,1651.7,1651.6,40.8090788]
[1745216988497,30.49097497,1651.7,1651.6,44.3699788]
[1745216990699,27.28317497,1651.7,1651.6,44.3699788]
[1745216990899,30.49097497,1651.7,1651.6,40.8090788]
[1745216992104,40.58198864,1651.7,1651.6,40.8090788]
[1745216997004,35.61951864,1651.7,1651.6,40.8090788]
[1745216997211,32.41171864,1651.7,1651.6,45.8090788]